bitfinex/quotes_ETHUSD_20241013
["timestamp","ask_amount","ask_price","bid_price","bid_amount"]
[1728818763139,0.22391138,2466.5,2466.4,1.15578719]
[1728818763866,0.22391138,2466.5,2466.4,0.30397693]
[1728818764226,0.22391138,2466.5,2466.4,1.15578719]
[1728818764453,0.22391138,2466.5,2466.4,0.30397693]
[1728818765168,0.22391138,2466.5,2466.4,1.15578719]
[1728818765385,0.22391138,2466.5,2466.4,0.30397693]
[1728818765542,1.04221138,2466.5,2466.4,0.30397693]
[1728818766168,0.8183,2466.4,2466.1,0.30397693]
[1728818766324,0.8183,2466.4,2466.2,0.30397693]
[1728818766525,1.04223906,2466.3,2465.9,0.85181026]
[1728818766756,1.04223906,2466.3,2466.0,0.30418171]
[1728818766970,1.04223906,2466.3,2466.1,0.30418171]
[1728818767171,1.04223906,2466.3,2466.2,0.30418171]
[1728818770166,1.04223906,2466.3,2465.9,0.85181026]
[1728818770373,1.04223906,2466.3,2466.2,0.30418042]
[1728818770680,1.04223906,2466.3,2466.2,0.30417177]
[1728818773291,1.04223906,2466.3,2466.1,0.85181026]
[1728818773592,1.04223906,2466.3,2466.2,0.30414087]
[1728818774488,1.04223906,2466.3,2466.2,0.30413379]
[1728818774643,0.22393906,2466.3,2466.2,0.30413379]
[1728818774846,0.825,2466.3,2466.0,0.85181026]
[1728818775087,0.22379755,2466.2,2466.1,0.85181026]
[1728818775684,0.825,2466.3,2466.1,0.85181026]
[1728818776050,0.22379777,2466.2,2466.1,0.85181026]
[1728818776253,0.825,2466.7,2466.1,0.85181026]
[1728818776473,1.1220888,2466.6,2466.1,1.15593446]
[1728818777076,1.1220888,2466.6,2466.2,0.30412083]
[1728818777280,1.1220888,2466.6,2466.5,0.00785622]
[1728818777491,1.1220888,2466.6,2466.5,0.31197705]
[1728818777790,0.22382126,2466.6,2466.5,0.31197705]
[1728818778773,0.22382126,2466.6,2466.5,0.31193236]
[1728818779452,0.8271,2466.9,2466.5,0.31193236]
[1728818779685,0.8271,2466.9,2466.8,0.00785622]
[1728818779885,0.8271,2466.9,2466.8,0.31193236]
[1728818780623,0.8271,2466.9,2466.8,0.00785622]
[1728818781199,0.8271,2466.9,2466.8,0.31184596]
[1728818781401,0.8271,2466.9,2466.8,0.00785622]
[1728818781896,0.8271,2466.9,2466.8,0.31184596]
[1728818782085,0.8271,2466.9,2466.8,0.00785622]
[1728818782463,0.8271,2466.9,2466.8,0.31184596]
[1728818782795,0.8271,2466.9,2466.8,0.00785622]
[1728818783298,0.8271,2466.9,2466.8,0.31184596]
[1728818783507,0.8271,2466.9,2466.8,0.00785622]
[1728818783862,0.8271,2466.9,2466.8,0.31184596]
[1728818784089,0.8271,2466.9,2466.8,0.00785622]
[1728818784260,8.4471468,2467.4,2466.8,0.00785622]
[1728818784464,8.4471468,2467.4,2466.6,0.3039085]
[1728818784465,1.79896857,2467.3,2467.2,0.00785622]
[1728818784812,0.8271,2467.3,2467.2,0.00785622]
[1728818794120,1.05105242,2467.3,2467.2,0.00785622]
[1728818794427,0.99395242,2467.3,2467.2,0.00785622]
[1728818798426,0.22395242,2467.3,2467.2,0.00785622]
[1728818798588,0.77,2467.7,2467.2,0.00785622]
[1728818799123,0.22412623,2467.6,2467.2,0.00785622]
[1728818799895,0.77,2467.9,2467.2,0.00785622]
[1728818800092,0.22417676,2467.5,2467.3,0.8031]
[1728818800296,0.22417676,2467.5,2467.4,0.00785622]
[1728818800496,7.31,2468.1,2467.4,0.00785622]
[1728818800832,0.22421547,2467.5,2467.4,0.00785622]
[1728818801127,0.22416829,2467.5,2467.4,0.00785622]
[1728818801527,7.31,2468.1,2467.4,0.00785622]
[1728818801694,0.22417364,2467.5,2467.4,0.00785622]
[1728818802427,7.31,2468.1,2467.4,0.00785622]
[1728818802587,0.22417364,2467.5,2467.4,0.00785622]
[1728818802792,7.31,2468.1,2467.4,0.00785622]
[1728818803088,0.22416918,2467.5,2467.4,0.00785622]
[1728818803293,7.31,2468.1,2467.4,0.00785622]
[1728818803493,0.22419181,2468.0,2467.4,0.00785622]
[1728818805296,0.77,2468.2,2467.4,0.00785622]
[1728818805490,0.22419633,2468.1,2467.4,0.00785622]
[1728818807297,0.62361596,2468.1,2467.4,0.00785622]
[1728818807497,0.22419633,2468.1,2467.4,0.00785622]
[1728818821260,0.8144,2468.0,2467.4,0.00785622]
[1728818821765,0.21648507,2467.9,2467.4,0.00785622]
[1728818824133,0.55,2467.8,2467.4,0.00785622]
[1728818824328,0.55,2467.6,2467.4,0.00785622]
[1728818824954,1.03081667,2467.5,2467.4,0.00785622]
[1728818825156,1.57348537,2467.5,2467.4,0.00785622]
[1728818826858,2.12348537,2467.5,2467.4,0.00785622]
[1728818827021,5.12348537,2467.5,2467.4,0.00785622]
[1728818828227,6.39229081,2467.5,2467.4,0.00785622]
[1728818828756,6.52216396,2467.5,2467.4,0.00785622]
[1728818829485,6.52205037,2467.5,2467.4,0.00785622]
[1728818829687,8.21379096,2467.5,2467.4,0.00785622]
[1728818829995,6.52205037,2467.5,2467.4,0.00785622]
[1728818830170,8.21379096,2467.5,2467.4,0.00785622]
[1728818830885,8.21342804,2467.5,2467.4,0.00785622]
[1728818831046,8.21345413,2467.5,2467.4,0.00785622]
[1728818832244,5.12324724,2467.5,2467.4,0.00785622]
[1728818832684,2.12324724,2467.5,2467.4,0.00785622]
[1728818832988,1.58057854,2467.5,2467.4,0.00785622]
[1728818834758,1.03057854,2467.5,2467.4,0.00785622]
[1728818835111,0.21617854,2467.5,2467.4,0.00785622]
[1728818835544,0.7631,2467.7,2467.4,0.00785622]
[1728818835748,0.21598238,2467.5,2467.4,0.00785622]
[1728818835970,0.55,2467.6,2467.4,0.00785622]
[1728818836159,0.76598238,2467.5,2467.4,0.00785622]
[1728818836364,0.97389062,2467.5,2467.4,0.00785622]
[1728818837486,1.52908238,2467.5,2467.4,0.00785622]
[1728818839147,4.52908238,2467.5,2467.4,0.00785622]
[1728818839584,1.52908238,2467.5,2467.4,0.00785622]
[1728818839964,4.52908238,2467.5,2467.4,0.00785622]
[1728818840180,4.61604812,2467.5,2467.4,0.00785622]
[1728818840492,5.2019062,2467.5,2467.4,0.00785622]
[1728818840867,2.2019062,2467.5,2467.4,0.00785622]
[1728818841091,1.52908238,2467.5,2467.4,0.00785622]
[1728818841407,6.2185558,2467.5,2467.4,0.00785622]
[1728818841574,7.61555507,2467.5,2467.4,0.00785622]
[1728818842808,5.92608165,2467.5,2467.4,0.00785622]
[1728818842962,4.52908238,2467.5,2467.4,0.00785622]
[1728818843162,1.52908238,2467.5,2467.4,0.00785622]
[1728818843914,6.21820349,2467.5,2467.4,0.00785622]
[1728818844066,8.44783153,2467.5,2467.4,0.00785622]
[1728818845313,8.31758809,2467.5,2467.4,0.00785622]
[1728818845810,9.71364873,2467.5,2467.4,0.00785622]
[1728818846010,11.40207593,2467.5,2467.4,0.00785622]
[1728818846511,13.09011454,2467.5,2467.4,0.00785622]
[1728818847299,34.76790227,2467.5,2467.4,0.00785622]
[1728818849067,33.08011454,2467.5,2467.4,0.00785622]
[1728818849228,31.6840539,2467.5,2467.4,0.00785622]
[1728818849861,25.35204287,2467.5,2467.4,0.00785622]
[1728818850168,28.43488037,2467.5,2467.4,0.00785622]
[1728818852644,28.85853121,2467.5,2467.4,0.00785622]
[1728818854977,27.17103891,2467.5,2467.4,0.00785622]
[1728818855379,25.77569371,2467.5,2467.4,0.00785622]
[1728818855557,25.22569371,2467.5,2467.4,0.00785622]
[1728818855883,21.46259371,2467.5,2467.4,0.00785622]
[1728818856187,0.21598238,2467.5,2467.4,0.00785622]
[1728818856685,2.1093196,2467.8,2467.4,0.00785622]
[1728818856843,0.21573871,2467.5,2467.4,0.00785622]
[1728818857046,2.1093196,2467.8,2467.4,0.00785622]
[1728818857269,0.20853581,2467.5,2467.4,0.00785622]
[1728818857469,1.26559176,2467.8,2467.4,0.00785622]
[1728818857780,1.94082809,2467.8,2467.4,0.00785622]
[1728818857992,0.20854486,2467.7,2467.4,0.00785622]
[1728818858470,4.94082809,2467.8,2467.4,0.00785622]
[1728818858988,0.20865776,2467.7,2467.4,0.00785622]
[1728818859490,0.55,2467.7,2467.4,0.00785622]
[1728818859711,0.20865324,2467.6,2467.4,0.00785622]
[1728818865169,0.20865324,2467.6,2467.5,0.8167]
[1728818865502,0.20866778,2467.6,2467.5,0.8167]
[1728818865686,3.0,2468.0,2467.5,0.8167]
[1728818865687,3.84563377,2468.0,2467.5,0.8167]
[1728818865865,0.20871784,2467.9,2467.5,0.8167]
[1728818870327,0.84563377,2468.1,2467.5,0.8167]
[1728818870530,0.20881453,2468.0,2467.5,0.8167]
[1728818871313,7.71876914,2468.4,2467.5,0.8167]
[1728818871522,0.20183092,2468.3,2467.5,0.8167]
[1728818872031,1.0476803,2468.3,2467.5,0.8167]
[1728818872315,4.0476803,2468.3,2467.5,0.8167]
[1728818872519,1.39584938,2468.2,2467.5,0.8167]
[1728818872834,0.2018637,2468.1,2467.5,0.8167]
[1728818874223,0.1938637,2468.1,2467.5,0.8167]
[1728818878233,3.84503459,2468.4,2467.5,0.8167]
[1728818878434,0.20161597,2468.0,2467.5,0.8167]
[1728818878604,3.84503459,2468.4,2467.5,0.8167]
[1728818878805,0.20160966,2467.9,2467.5,0.8167]
[1728818879006,3.84503459,2468.4,2467.5,0.8167]
[1728818879192,0.20161048,2467.8,2467.5,0.8167]
[1728818879388,3.84503459,2468.4,2467.5,0.8167]
[1728818879618,0.20161402,2467.7,2467.5,0.8167]
[1728818879822,3.84503459,2468.4,2467.5,0.8167]
[1728818880131,1.56531055,2468.3,2467.5,0.8167]
[1728818881298,0.20163492,2468.3,2467.5,0.8167]
[1728818884729,0.96603492,2468.3,2467.5,0.8167]
[1728818885103,0.55,2468.2,2467.5,0.8167]
[1728818885304,0.20171819,2468.1,2467.5,0.8167]
[1728818886315,3.84469905,2468.4,2467.5,0.8167]
[1728818886316,0.55,2468.3,2467.5,0.8167]
[1728818886640,0.20171105,2468.2,2467.5,0.8167]
[1728818887242,3.0,2468.4,2467.5,0.8167]
[1728818887539,0.20169936,2468.1,2467.5,0.8167]
[1728818887840,0.20169305,2468.0,2467.5,0.8167]
[1728818888352,0.20170369,2467.9,2467.5,0.8167]
[1728818888543,3.0,2468.4,2467.5,0.8167]
[1728818888705,0.20172985,2468.3,2467.5,0.8167]
[1728818897038,0.95362985,2468.3,2467.5,0.8167]
[1728818897252,0.39536299,2468.2,2467.5,0.8167]
[1728818897461,1.7989979,2468.3,2467.5,0.8167]
[1728818897769,0.2017952,2468.2,2467.5,0.8167]
[1728818898270,1.04716325,2468.2,2467.5,0.8167]
[1728818898661,0.2017952,2468.2,2467.5,0.8167]
[1728818898985,0.55,2468.1,2467.5,0.8167]
[1728818899140,4.59726805,2468.0,2467.5,0.8167]
[1728818899339,0.20176637,2467.9,2467.5,0.8167]
[1728818899567,4.04713442,2467.9,2467.5,0.8167]
[1728818899880,1.04713442,2467.9,2467.5,0.8167]
[1728818900242,0.78828502,2467.9,2467.5,0.8167]
[1728818900449,0.20176637,2467.9,2467.5,0.8167]
[1728818900932,0.20172602,2467.8,2467.5,0.8167]
[1728818901135,0.60671153,2468.2,2467.5,0.8167]
[1728818901375,0.20173959,2468.1,2467.5,0.8167]
[1728818902405,3.84682682,2467.9,2467.5,0.8167]
[1728818902539,1.48872352,2467.8,2467.5,0.8167]
[1728818902736,0.20167952,2467.7,2467.4,0.00785622]
[1728818903043,0.84682682,2467.7,2467.4,0.00785622]
[1728818903233,0.20165256,2467.6,2467.4,0.00785622]
[1728818904572,4.80037938,2467.6,2467.4,0.00785622]
[1728818904809,4.45388878,2467.5,2467.4,0.00785622]
[1728818905167,4.65550454,2467.5,2467.4,0.00785622]
[1728818906309,4.65558205,2467.5,2467.4,0.00785622]
[1728818907000,5.20558205,2467.5,2467.4,0.00785622]
[1728818907777,1.35867772,2467.5,2467.4,0.00785622]
[1728818908206,0.75161576,2467.5,2467.4,0.00785622]
[1728818908713,1.59847601,2467.5,2467.4,0.00785622]
[1728818908871,4.59847601,2467.5,2467.4,0.00785622]
[1728818910668,1.04847601,2467.5,2467.4,0.00785622]
[1728818913004,0.20161576,2467.5,2467.4,0.00785622]
[1728818913370,0.55,2467.8,2467.4,0.00785622]
[1728818913598,0.55,2467.6,2467.4,0.00785622]
[1728818913906,4.39651821,2467.6,2467.4,0.00785622]
[1728818914071,4.63479202,2467.5,2467.4,0.00785622]
[1728818914271,0.78827381,2467.5,2467.4,0.00785622]
[1728818917896,0.20149396,2467.5,2467.4,0.76495622]
[1728818918427,0.84651821,2467.7,2467.4,0.76495622]
[1728818918581,0.20143844,2467.5,2467.4,0.76495622]
[1728818918772,0.84651821,2467.7,2467.4,0.76495622]
[1728818919106,0.20144022,2467.5,2467.4,0.76495622]
[1728818919308,0.84651821,2467.7,2467.4,0.76495622]
[1728818919514,0.20144022,2467.5,2467.4,0.76495622]
[1728818919704,0.84651821,2467.7,2467.4,0.76495622]
[1728818920212,0.20144296,2467.6,2467.4,0.76495622]
[1728818921000,0.20144296,2467.6,2467.4,0.00785622]
[1728818921313,4.86956117,2467.6,2467.4,0.00785622]
[1728818921522,0.78695612,2467.5,2467.4,0.00785622]
[1728818921810,0.98840169,2467.5,2467.4,0.00785622]
[1728818922010,0.20144557,2467.5,2467.4,0.82665622]
[1728818922720,0.84651821,2468.1,2467.4,0.82665622]
[1728818923211,0.1947591,2468.0,2467.4,0.82665622]
[1728818926192,0.84651821,2468.2,2467.4,0.82665622]
[1728818926397,0.1948657,2468.1,2467.4,0.82665622]
[1728818926720,0.1948657,2468.1,2467.6,0.8188]
[1728818926875,0.1948657,2468.1,2468.0,0.00785622]
[1728818927079,0.1948657,2468.1,2468.0,0.82665622]
[1728818928126,0.84651821,2468.4,2468.0,0.82665622]
[1728818928328,0.19487927,2468.1,2468.0,0.8188]
[1728818928498,0.84651821,2468.4,2468.0,0.82665622]
[1728818928687,0.19487927,2468.1,2468.0,0.82665622]
[1728818928893,0.84651821,2468.4,2468.0,0.82665622]
[1728818929085,0.19486679,2468.1,2468.0,0.82665622]
[1728818929291,0.84651821,2468.4,2468.0,0.82665622]
[1728818929527,0.19486679,2468.1,2468.0,0.82665622]
[1728818929727,0.84651821,2468.4,2468.0,0.82665622]
[1728818929911,0.19486501,2468.1,2468.0,0.82665622]
[1728818930094,0.84651821,2468.4,2468.0,0.82665622]
[1728818930296,0.19486501,2468.1,2468.0,0.82665622]
[1728818930490,0.84651821,2468.5,2468.0,0.82665622]
[1728818930716,0.19487392,2468.1,2468.0,0.82665622]
[1728818930944,0.84651821,2468.5,2468.0,0.82665622]
[1728818931094,0.19489988,2468.1,2468.0,0.82665622]
[1728818931420,0.19489275,2468.1,2468.0,0.82665622]
[1728818931944,1.65331821,2468.4,2468.0,0.82665622]
[1728818932140,0.19489097,2468.1,2468.0,0.82665622]
[1728818932305,1.65331821,2468.4,2468.0,0.82665622]
[1728818932635,0.22471078,2468.3,2468.0,0.82665622]
[1728818932941,0.41961436,2468.3,2468.0,0.00785622]
[1728818933238,0.41961436,2468.3,2467.8,0.8114]
[1728818933239,1.26613257,2468.3,2468.2,0.00785622]
[1728818934087,6.00829167,2468.3,2468.2,0.00785622]
[1728818934527,6.13774999,2468.3,2468.2,0.00785622]
[1728818935554,7.83078641,2468.3,2468.2,0.00785622]
[1728818940714,6.13821261,2468.3,2468.2,0.00785622]
[1728818941528,7.83124903,2468.3,2468.2,0.00785622]
[1728818941730,5.23920301,2468.3,2468.2,0.00785622]
[1728818942669,5.23925042,2468.3,2468.2,0.00785622]
[1728818942979,5.23926096,2468.3,2468.2,0.00785622]
[1728818943334,7.06240917,2468.3,2468.2,0.00785622]
[1728818943533,5.36937275,2468.3,2468.2,0.00785622]
[1728818944030,7.06240917,2468.3,2468.2,0.00785622]
[1728818944869,7.83130917,2468.3,2468.2,0.00785622]
[1728818945430,5.36937275,2468.3,2468.2,0.00785622]
[1728818945738,7.06240917,2468.3,2468.2,0.00785622]
[1728818946071,5.36939577,2468.3,2468.2,0.00785622]
[1728818946545,7.06243219,2468.3,2468.2,0.00785622]
[1728818947165,7.83133219,2468.3,2468.2,0.00785622]
[1728818947471,6.13829577,2468.3,2468.2,0.00785622]
[1728818947654,7.83115898,2468.3,2468.2,0.00785622]
[1728818952338,6.13829577,2468.3,2468.2,0.00785622]
[1728818952538,8.25444049,2468.3,2468.2,0.00785622]
[1728818953089,6.7782327,2468.3,2468.2,0.00785622]
[1728818953730,9.31760636,2468.3,2468.2,0.00785622]
[1728818954383,9.31800805,2468.3,2468.2,0.00785622]
[1728818955177,8.67807112,2468.3,2468.2,0.00785622]
[1728818956084,7.88818626,2468.3,2468.2,0.00785622]
[1728818956243,10.42796161,2468.3,2468.2,0.00785622]
[1728818956585,6.13829577,2468.3,2468.2,0.00785622]
[1728818956771,5.58829577,2468.3,2468.2,0.00785622]
[1728818957075,3.93640582,2468.3,2468.2,0.00785622]
[1728818957296,3.2884098,2468.3,2468.2,0.00785622]
[1728818957651,1.59468499,2468.3,2468.2,0.00785622]
[1728818957851,3.2884098,2468.3,2468.2,0.00785622]
[1728818958094,1.59468499,2468.3,2468.2,0.00785622]
[1728818958298,3.2884098,2468.3,2468.2,0.00785622]
[1728818958659,2.01629426,2468.3,2468.2,0.00785622]
[1728818959055,6.00073692,2468.3,2468.2,0.00785622]
[1728818959260,7.82481009,2468.3,2468.2,0.00785622]
[1728818962985,6.13108528,2468.3,2468.2,0.00785622]
[1728818963698,8.25192125,2468.3,2468.2,0.00785622]
[1728818963866,6.13108528,2468.3,2468.2,0.00785622]
[1728818965077,8.25192125,2468.3,2468.2,0.00785622]
[1728818965404,6.13108528,2468.3,2468.2,0.00785622]
[1728818965591,8.25192125,2468.3,2468.2,0.00785622]
[1728818966179,6.13108528,2468.3,2468.2,0.00785622]
[1728818966487,8.25192125,2468.3,2468.2,0.00785622]
[1728818967672,9.06442125,2468.3,2468.2,0.00785622]
[1728818968292,9.06620666,2468.3,2468.2,0.00785622]
[1728818972972,9.06640803,2468.3,2468.2,0.00785622]
[1728818976090,9.06650724,2468.3,2468.2,0.00785622]
[1728818979082,9.49109164,2468.3,2468.2,0.00785622]
[1728818979418,11.24801404,2468.3,2468.2,0.00785622]
[1728818979934,9.49109164,2468.3,2468.2,0.00785622]
[1728818982441,9.49313959,2468.3,2468.2,0.00785622]
[1728818984122,11.25006199,2468.3,2468.2,0.00785622]
[1728818984503,9.49313959,2468.3,2468.2,0.00785622]
[1728818984709,6.94358528,2468.3,2468.2,0.00785622]
[1728818984910,6.13108528,2468.3,2468.2,0.00785622]
[1728818985743,5.14664262,2468.3,2468.2,0.00785622]
[1728818985897,3.72138475,2468.3,2468.2,0.00785622]
[1728818986241,2.31964571,2468.3,2468.2,0.81825622]
[1728818987145,3.16964552,2468.3,2468.2,0.81825622]
[1728818990347,2.31964571,2468.3,2468.2,0.81825622]
[1728818990731,3.16964552,2468.3,2468.2,0.81825622]
[1728818992445,1.04490339,2468.3,2468.2,0.81825622]
[1728818993805,0.19490358,2468.3,2468.2,0.81825622]
[1728819000548,1.04490339,2468.3,2468.2,0.00785622]
[1728819000849,1.3538037,2468.3,2468.2,0.00785622]
[1728819001146,0.50380389,2468.3,2468.2,0.00785622]
[1728819001447,1.3538037,2468.3,2468.2,0.00785622]
[1728819001748,1.04490339,2468.3,2468.2,0.00785622]
[1728819002534,1.4699033,2468.3,2468.2,0.00785622]
[1728819002835,5.2390033,2468.3,2468.2,0.00785622]
[1728819003244,3.96400358,2468.3,2468.2,0.00785622]
[1728819003955,2.7890033,2468.3,2468.2,0.00785622]
[1728819004162,6.75014236,2468.3,2468.2,0.00785622]
[1728819004465,8.57896459,2468.3,2468.2,0.00785622]
[1728819004759,5.97941381,2468.3,2468.2,0.00785622]
[1728819006960,6.10981585,2468.3,2468.2,0.00785622]
[1728819007170,6.10978403,2468.3,2468.2,0.00785622]
[1728819007339,7.80978366,2468.3,2468.2,0.00785622]
[1728819008263,6.10978403,2468.3,2468.2,0.00785622]
[1728819008422,5.97938852,2468.3,2468.2,0.00785622]
[1728819009469,4.46824946,2468.3,2468.2,0.00785622]
[1728819009623,4.46824946,2468.3,2468.2,0.84005622]
[1728819009822,1.04373434,2468.3,2468.2,0.84005622]
[1728819010465,0.19490358,2468.3,2468.2,0.84005622]
[1728819015237,0.84893645,2468.7,2468.2,0.84005622]
[1728819015637,0.18249641,2468.6,2468.2,0.84005622]
[1728819016450,0.84893645,2468.8,2468.2,0.84005622]
[1728819016661,0.18250093,2468.7,2468.2,0.84005622]
[1728819018903,1.03143738,2468.7,2468.2,0.84005622]
[1728819019203,0.18250093,2468.7,2468.2,0.84005622]
[1728819023601,3.84893645,2468.9,2468.2,0.84005622]
[1728819023809,0.17571859,2468.6,2468.2,0.84005622]
[1728819023984,3.84893645,2468.9,2468.2,0.84005622]
[1728819024169,0.17571407,2468.5,2468.2,0.84005622]
[1728819024505,0.17570954,2468.4,2468.2,0.84005622]
[1728819024799,3.84893645,2468.9,2468.2,0.84005622]
[1728819025008,0.17570502,2468.3,2468.2,0.84005622]
[1728819025212,3.84893645,2468.9,2468.2,0.84005622]
[1728819025381,0.17570502,2468.3,2468.2,0.84005622]
[1728819025579,3.84893645,2468.9,2468.2,0.84005622]
[1728819025821,0.17570502,2468.3,2468.2,0.84005622]
[1728819025990,3.84893645,2468.9,2468.2,0.84005622]
[1728819026176,0.17570502,2468.3,2468.2,0.84005622]
[1728819026381,3.84893645,2468.9,2468.2,0.84005622]
[1728819026600,0.1757068,2468.3,2468.2,0.84005622]
[1728819026807,3.84893645,2468.9,2468.2,0.84005622]
[1728819026978,0.17570859,2468.3,2468.2,0.84005622]
[1728819027304,0.17571483,2468.3,2468.2,0.84005622]
[1728819027489,3.84893645,2468.9,2468.2,0.84005622]
[1728819027693,0.17571483,2468.3,2468.2,0.84005622]
[1728819027893,3.84893645,2468.9,2468.2,0.84005622]
[1728819028078,0.17571483,2468.3,2468.2,0.84005622]
[1728819028280,3.84893645,2468.9,2468.2,0.84005622]
[1728819028516,0.17571304,2468.3,2468.2,0.84005622]
[1728819028816,3.84893645,2468.9,2468.2,0.84005622]
[1728819029116,4.65571775,2468.9,2468.2,0.84005622]
[1728819029315,1.02466854,2468.8,2468.2,0.84005622]
[1728819029616,0.17573209,2468.8,2468.2,0.84005622]
[1728819030114,1.02466854,2468.8,2468.2,0.84005622]
[1728819033919,0.17573209,2468.8,2468.2,0.84005622]
[1728819040607,0.84893645,2468.9,2468.2,0.84005622]
[1728819040813,0.17587294,2468.7,2468.2,0.84005622]
[1728819041002,0.17587746,2468.8,2468.2,0.84005622]
[1728819041197,0.84893645,2468.9,2468.2,0.84005622]
[1728819041198,0.17586842,2468.6,2468.2,0.84005622]
[1728819041504,0.1758639,2468.5,2468.2,0.84005622]
[1728819041722,0.84893645,2468.9,2468.2,0.84005622]
[1728819041900,0.17585938,2468.4,2468.2,0.84005622]
[1728819042095,0.84893645,2468.9,2468.2,0.84005622]
[1728819042344,1.27340468,2469.0,2468.2,0.84005622]
[1728819042345,0.17585485,2468.3,2468.2,0.84005622]
[1728819042502,0.84893645,2469.0,2468.2,0.84005622]
[1728819042700,0.17585485,2468.3,2468.2,0.84005622]
[1728819042939,0.84893645,2469.3,2468.3,0.76]
[1728819043146,0.84893645,2469.3,2469.2,0.00785622]
[1728819043437,0.84893645,2469.4,2469.2,0.76785622]
[1728819044494,0.84893645,2469.5,2469.2,0.76785622]
[1728819044742,0.84893645,2469.4,2469.2,0.76785622]
[1728819045344,2.06760468,2469.6,2469.2,0.76785622]
[1728819045345,0.17599511,2469.3,2469.2,0.76785622]
[1728819045637,0.7942,2469.6,2469.2,0.76785622]
[1728819046148,1.02463784,2469.5,2469.2,0.76785622]
[1728819047359,0.17598455,2469.5,2469.2,0.76785622]
[1728819047545,1.02463784,2469.5,2469.2,0.76785622]
[1728819047753,0.17598455,2469.5,2469.2,0.76785622]
[1728819051127,1.02463784,2469.5,2469.2,0.76785622]
[1728819051743,1.63381962,2469.5,2469.2,0.00785622]
[1728819053308,0.84865329,2469.4,2469.2,0.00785622]
[1728819053509,1.02404201,2469.4,2469.2,0.00785622]
[1728819053755,0.7905,2469.3,2469.2,0.00785622]
[1728819053908,0.9658842,2469.3,2469.2,0.00785622]
[1728819054109,1.33555412,2469.3,2469.2,0.00785622]
[1728819056581,0.54505412,2469.3,2469.2,0.00785622]
[1728819056789,0.1753842,2469.3,2469.2,0.00785622]
[1728819057754,0.84865329,2469.5,2469.2,0.00785622]
[1728819057970,0.17552971,2469.3,2469.2,0.00785622]
[1728819058286,0.17552615,2469.3,2469.2,0.00785622]
[1728819058444,0.84865329,2469.5,2469.2,0.00785622]
[1728819058644,0.17553067,2469.4,2469.2,0.00785622]
[1728819063828,0.84865329,2469.6,2469.2,0.00785622]
[1728819064018,0.17553417,2469.3,2469.2,0.00785622]
[1728819064522,0.84865329,2469.6,2469.2,0.00785622]
[1728819064679,0.17558293,2469.3,2469.2,0.77075622]
[1728819064881,3.84865329,2469.7,2469.2,0.77075622]
[1728819065086,0.17562458,2469.3,2469.2,0.77075622]
[1728819065294,3.84865329,2469.7,2469.2,0.77075622]
[1728819065497,0.17563813,2469.3,2469.2,0.77075622]
[1728819065720,0.84865329,2469.7,2469.2,0.77075622]
[1728819065885,0.17563813,2469.3,2469.2,0.77075622]
[1728819066087,0.84865329,2469.8,2469.2,0.77075622]
[1728819066281,0.1698073,2469.3,2469.2,0.77075622]
[1728819066490,0.84865329,2469.8,2469.2,0.77075622]
[1728819066697,0.1698073,2469.3,2469.2,0.77075622]
[1728819066896,0.84865329,2469.9,2469.2,0.77075622]
[1728819067091,0.1698073,2469.3,2469.2,0.77075622]
[1728819067410,0.84865329,2469.9,2469.2,0.77075622]
[1728819067618,0.1698073,2469.3,2469.2,0.77075622]
[1728819067822,0.84865329,2469.9,2469.2,0.77075622]
[1728819067984,0.1698073,2469.3,2469.2,0.77075622]
[1728819068184,0.84865329,2469.9,2469.2,0.77075622]
[1728819068403,0.1698073,2469.3,2469.2,0.77075622]
[1728819069012,0.84865329,2469.9,2469.2,0.77075622]
[1728819069208,0.16983463,2469.3,2469.2,0.77075622]
[1728819069411,0.84865329,2469.9,2469.2,0.77075622]
[1728819069577,0.16983463,2469.3,2469.2,0.77075622]
[1728819069774,0.84865329,2469.9,2469.2,0.77075622]
[1728819070017,0.16983463,2469.3,2469.2,0.77075622]
[1728819070320,0.16988106,2469.3,2469.2,0.77075622]
[1728819070479,0.84865329,2469.9,2469.2,0.77075622]
[1728819070682,0.16988106,2469.3,2469.2,0.77075622]
[1728819070896,0.84865329,2469.9,2469.2,0.77075622]
[1728819071121,0.16988106,2469.3,2469.2,0.77075622]
[1728819071427,0.84865329,2469.9,2469.2,0.77075622]
[1728819072022,0.16990366,2469.8,2469.2,0.77075622]
[1728819072581,0.84865329,2470.1,2469.2,0.77075622]
[1728819072781,0.16993621,2469.7,2469.2,0.77075622]
[1728819073020,0.84865329,2470.1,2469.2,0.77075622]
[1728819073476,0.16994353,2470.0,2469.2,0.77075622]
[1728819073915,0.96454353,2470.0,2469.2,0.77075622]
[1728819074121,1.2731612,2470.0,2469.2,0.77075622]
[1728819075522,0.96454353,2470.0,2469.2,0.77075622]
[1728819077457,1.81319682,2470.0,2469.2,0.77075622]
[1728819081160,0.16994353,2470.0,2469.2,0.77075622]
[1728819081472,1.01859682,2470.0,2469.2,0.77075622]
[1728819081643,0.16994353,2470.0,2469.2,0.77075622]
[1728819083234,0.84865329,2470.2,2469.2,0.77075622]
[1728819083533,1.01868318,2470.1,2469.2,0.77075622]
[1728819084043,0.17002989,2470.1,2469.2,0.77075622]
[1728819084375,1.01868318,2470.1,2469.2,0.77075622]
[1728819086530,0.17002989,2470.1,2469.2,0.77075622]
[1728819087070,1.01868318,2470.1,2469.2,0.77075622]
[1728819089826,1.01868318,2470.1,2469.3,0.8165]
[1728819090051,0.17002989,2470.1,2470.0,0.82435622]
[1728819092039,0.84865329,2470.4,2470.0,0.82435622]
[1728819092692,7.31,2470.5,2470.0,0.82435622]
[1728819092693,0.17014371,2470.3,2470.0,0.82435622]
[1728819092866,1.27297993,2470.6,2470.0,0.82435622]
[1728819092867,3.84865329,2470.6,2470.0,0.82435622]
[1728819093193,0.17019505,2470.5,2470.0,0.82435622]
[1728819097258,0.8122,2470.4,2470.0,0.00785622]
[1728819097494,0.8122,2470.4,2470.3,0.00785622]
[1728819098278,1.3622,2470.4,2470.3,0.00785622]
[1728819102515,0.8122,2470.4,2470.3,0.00785622]
[1728819102697,1.52495981,2470.5,2470.3,0.00785622]
[1728819105007,0.84865329,2470.5,2470.3,0.00785622]
[1728819105219,0.17033271,2470.4,2470.3,0.00785622]
[1728819106387,0.84865329,2470.6,2470.3,0.00785622]
[1728819106927,0.17033652,2470.5,2470.3,0.00785622]
[1728819108590,0.17033652,2470.5,2470.4,0.7997]
[1728819112304,0.17033652,2470.5,2470.3,0.00785622]
[1728819112504,1.01898981,2470.5,2470.3,0.00785622]
[1728819113614,1.82928981,2470.5,2470.3,0.00785622]
[1728819114139,0.84865329,2470.4,2470.3,0.00785622]
[1728819114513,1.01906614,2470.4,2470.3,0.00785622]
[1728819118703,1.01906614,2470.4,2470.3,0.76765622]
[1728819120870,1.01906614,2470.4,2470.3,0.00785622]
[1728819121040,0.17041285,2470.4,2470.3,0.00785622]
[1728819121368,1.01906614,2470.4,2470.3,0.00785622]
[1728819122762,0.17041285,2470.4,2470.3,0.00785622]